[Event "FIDE World Cadets GU12 2022"]
[Site "Batumi"]
[Date "2022.09.27"]
[Round "11.12"]
[White "Beber, Anja"]
[Black "Urangoo, Gurvanbaatar"]
[Result "0-1"]
[ECO "E62"]
[WhiteElo "1674"]
[BlackElo "1391"]
[Annotator "NA RC COMBH"]
[PlyCount "78"]
[EventDate "2022.09.16"]
[EventType "swiss"]
[EventCountry "GEO"]
[SourceTitle "playchess.com"]
[Source "ChessBase"]
[SourceQuality "1"]
[TimeControl "5400+30"]

1. d4 {[%emt 0:01:00]} Nf6 {[%emt 0:01:00]} 2. c4 {[%emt 0:00:30]} g6 {[%emt 0:00:00]} 3. Nf3 {[%emt 0:00:00]} Bg7 {[%emt 0:00:00]} 4. g3 {[%emt 0:00:00]} O-O {[%emt 0:00:30]} 5. Bg2 {[%emt 0:00:30]} d6 {[%emt 0:00:30]} 6. Nc3 {[%emt 0:00:30]} Nc6 {[%emt 0:00:30]} 7. O-O {[%emt 0:01:30]} Bg4 {[%emt 0:00:30]} 8. b3 {[%emt 0:15:30]} Nd7 {[%emt 0:00:30]} 9. e3 {[%emt 0:06:30]} e5 {[%emt 0:01:30]} 10. Ne2 {[%emt 0:01:30]} exd4 {[%emt 0:07:30]} 11. exd4 {[%emt 0:00:30]} Qf6 {[%emt 0:00:30]} 12. Bg5 {[%emt 0:01:30]} Qf5 {[%emt 0:00:30]} 13. Bf4 {[%emt 0:04:30]} Qe4 {[%emt 0:12:30]} 14. Nc3 {[%emt 0:10:30]} Bxf3 {[%emt 0:00:00]} 15. Nxe4 {[%emt 0:00:00]} Bxd1 {[%emt 0:00:00]} 16. Raxd1 {[%emt 0:00:00]} Nxd4 {[%emt 0:00:30]} 17. Rfe1 {[%emt 0:02:30]} Rfe8 {[%emt 0:03:30]} 18. Kf1 {[%emt 0:07:30]} Nc6 {[%emt 0:04:30]} 19. c5 {[%emt 0:04:30]} f5 {[%emt 0:03:30]} 20. cxd6 {[%emt 0:04:30]} fxe4 {[%emt 0:01:30]} 21. dxc7 {[%emt 0:00:30]} Nc5 {[%emt 0:02:30]} 22. Bd6 {[%emt 0:00:30]} Bf8 {[%emt 0:02:30]} 23. Bxc5 {[%emt 0:00:30]} Bxc5 {[%emt 0:00:30]} 24. Rxe4 {[%emt 0:01:30]} Rec8 {[%emt 0:08:30]} 25. Rc4 {[%emt 0:04:30]} Bb6 {[%emt 0:02:30]} 26. Bxc6 {[%emt 0:00:30]} bxc6 {[%emt 0:00:30]} 27. Rxc6 {[%emt 0:00:00]} Rxc7 {[%emt 0:00:30]} 28. Rxc7 {[%emt 0:00:00]} Bxc7 {[%emt 0:00:00]} 29. Rc1 {[%emt 0:00:30]} Bb6 {[%emt 0:00:00]} 30. Rc2 {[%emt 0:00:30]} Rd8 {[%emt 0:01:30]} 31. Kg2 {[%emt 0:01:30]} Kf7 {[%emt 0:00:30]} 32. a4 {[%emt 0:01:30]} Rd4 {[%emt 0:01:30]} 33. Rb2 {[%emt 0:02:30]} Rb4 {[%emt 0:02:30]} 34. Rd2 {[%emt 0:00:30]} Rxb3 {[%emt 0:03:30]} 35. a5 {[%emt 0:00:30]} Bc5 {[%emt 0:01:30]} 36. Rd7+ {[%emt 0:00:30]} Kg8 {[%emt 0:00:30]} 37. Rc7 {[%emt 0:03:30]} Rb5 {[%emt 0:00:00]} 38. a6 {[%emt 0:00:30]} Bb6 {[%emt 0:00:00]} 39. Rc8+ {[%emt 0:00:00]} Kg7 {[%emt 0:01:30]} 0-1

[Event "FIDE World Cadets GU12 2022"]
[Site "Batumi"]
[Date "2022.09.27"]
[Round "11.13"]
[White "Altynbek, Aiaru"]
[Black "Huseynli, Ayan"]
[Result "1-0"]
[ECO "D00"]
[WhiteElo "1373"]
[BlackElo "1572"]
[Annotator "NA RC COMBH"]
[PlyCount "61"]
[EventDate "2022.09.16"]
[EventType "swiss"]
[EventCountry "GEO"]
[SourceTitle "playchess.com"]
[Source "ChessBase"]
[SourceQuality "1"]
[TimeControl "5400+30"]

1. d4 {[%emt 0:01:00]} d5 {[%emt 0:01:00]} 2. Bf4 {[%emt 0:00:30]} e6 {[%emt 0:00:00]} 3. e3 {[%emt 0:00:00]} c5 {[%emt 0:00:00]} 4. c3 {[%emt 0:01:00]} Qb6 {[%emt 0:00:30]} 5. Qb3 {[%emt 0:00:30]} c4 {[%emt 0:00:00]} 6. Qc2 {[%emt 0:00:30]} Nf6 {[%emt 0:06:00]} 7. Nd2 {[%emt 0:02:30]} Nh5 {[%emt 0:07:30]} 8. Bg3 {[%emt 0:02:30]} Nxg3 {[%emt 0:03:30]} 9. hxg3 {[%emt 0:00:30]} f5 {[%emt 0:00:30]} 10. Be2 {[%emt 0:06:30]} g6 {[%emt 0:03:30]} 11. Nh3 {[%emt 0:03:30]} Qd8 {[%emt 0:05:30]} 12. g4 {[%emt 0:03:30]} Bh6 {[%emt 0:08:30]} 13. b3 {[%emt 0:07:30]} fxg4 {[%emt 0:10:30]} 14. Nf4 {[%emt 0:05:30]} Bxf4 {[%emt 0:03:30]} 15. exf4 {[%emt 0:00:30]} cxb3 {[%emt 0:01:30]} 16. axb3 {[%emt 0:04:30]} Qf6 {[%emt 0:01:30]} 17. g3 {[%emt 0:03:30]} h5 {[%emt 0:01:30]} 18. f3 {[%emt 0:03:30]} gxf3 {[%emt 0:01:30]} 19. Nxf3 {[%emt 0:01:30]} Nc6 {[%emt 0:02:30]} 20. b4 {[%emt 0:06:30]} Ne7 {[%emt 0:03:30]} 21. Qa4+ {[%emt 0:05:30]} Kf8 {[%emt 0:01:30]} 22. Qa5 {[%emt 0:03:30]} Nf5 {[%emt 0:07:30]} 23. Qc5+ {[%emt 0:08:30]} Kg8 {[%emt 0:01:30]} 24. Kf2 {[%emt 0:01:30]} h4 {[%emt 0:05:30]} 25. gxh4 {[%emt 0:01:30]} Nxh4 {[%emt 0:01:30]} 26. Rag1 {[%emt 0:04:30]} Nxf3 {[%emt 0:03:46]} 27. Kxf3 {[%emt 0:05:23]} Rxh1 {[%emt 0:02:00]} 28. Rxh1 {[%emt 0:00:04]} Bd7 {[%emt 0:06:56]} 29. Qc7 {[%emt 0:00:48]} Rf8 {[%emt 0:03:03]} 30. Bd3 {[%emt 0:01:49]} Qf7 {[%emt 0:05:38]} 31. Rh6 {[%emt 0:01:31]} 1-0

[Event "FIDE World Cadets GU12 2022"]
[Site "Batumi"]
[Date "2022.09.27"]
[Round "11.16"]
[White "Garcia Rodriguez, Laia"]
[Black "Tynyshtyk, Diana"]
[Result "1-0"]
[ECO "B26"]
[WhiteElo "1742"]
[BlackElo "1373"]
[Annotator "NA RC COMBH"]
[PlyCount "79"]
[EventDate "2022.09.16"]
[EventType "swiss"]
[EventCountry "GEO"]
[SourceTitle "playchess.com"]
[Source "ChessBase"]
[SourceQuality "1"]
[TimeControl "5400+30"]

1. e4 {[%emt 0:01:00]} c5 {[%emt 0:01:00]} 2. Nc3 {[%emt 0:00:00]} Nc6 {[%emt 0:00:30]} 3. g3 {[%emt 0:00:00]} g6 {[%emt 0:00:30]} 4. Bg2 {[%emt 0:00:30]} Bg7 {[%emt 0:00:00]} 5. d3 {[%emt 0:00:30]} d6 {[%emt 0:00:00]} 6. Be3 {[%emt 0:00:30]} e6 {[%emt 0:00:30]} 7. Qd2 {[%emt 0:00:00]} Nge7 {[%emt 0:00:00]} 8. Bh6 {[%emt 0:01:00]} O-O {[%emt 0:04:00]} 9. Bxg7 {[%emt 0:00:30]} Kxg7 {[%emt 0:00:00]} 10. Nge2 {[%emt 0:01:30]} Nd4 {[%emt 0:01:00]} 11. O-O {[%emt 0:00:30]} Rb8 {[%emt 0:02:30]} 12. h3 {[%emt 0:00:30]} Nec6 {[%emt 0:02:30]} 13. f4 {[%emt 0:02:30]} a6 {[%emt 0:03:30]} 14. g4 {[%emt 0:00:00]} f5 {[%emt 0:00:30]} 15. Ng3 {[%emt 0:00:00]} fxg4 {[%emt 0:05:30]} 16. hxg4 {[%emt 0:00:30]} Qh4 {[%emt 0:00:30]} 17. Nce2 {[%emt 0:13:30]} Qxg4 {[%emt 0:05:30]} 18. c3 {[%emt 0:04:30]} Nxe2+ {[%emt 0:01:30]} 19. Nxe2 {[%emt 0:00:30]} d5 {[%emt 0:03:30]} 20. Rf3 {[%emt 0:02:30]} dxe4 {[%emt 0:04:30]} 21. dxe4 {[%emt 0:00:30]} Rd8 {[%emt 0:09:30]} 22. Qe3 {[%emt 0:04:30]} b6 {[%emt 0:00:30]} 23. Rg3 {[%emt 0:02:30]} Qh4 {[%emt 0:04:30]} 24. f5 {[%emt 0:04:30]} exf5 {[%emt 0:06:30]} 25. exf5 {[%emt 0:01:30]} Bd7 {[%emt 0:21:30]} 26. Rh3 {[%emt 0:06:30]} Qe7 {[%emt 0:01:30]} 27. Qh6+ {[%emt 0:01:30]} Kh8 {[%emt 0:02:30]} 28. f6 {[%emt 0:07:30]} Qf7 {[%emt 0:03:50]} 29. Bd5 {[%emt 0:00:00]} Rf8 {[%emt 0:01:15]} 30. Bxf7 {[%emt 0:00:00]} Rxf7 {[%emt 0:00:00]} 31. Rh2 {[%emt 0:02:30]} Ne5 {[%emt 0:00:34]} 32. Qf4 {[%emt 0:01:30]} Re8 {[%emt 0:00:19]} 33. Rd1 {[%emt 0:01:30]} Ng4 {[%emt 0:00:49]} 34. Rxd7 {[%emt 0:01:30]} Rxd7 {[%emt 0:00:41]} 35. Qxg4 {[%emt 0:00:30]} Rd1+ {[%emt 0:01:11]} 36. Kf2 {[%emt 0:00:30]} Rd2 {[%emt 0:00:27]} 37. f7 {[%emt 0:01:30]} Rdxe2+ {[%emt 0:01:49]} 38. Qxe2 {[%emt 0:00:30]} Rxe2+ {[%emt 0:00:30]} 39. Kxe2 {[%emt 0:00:30]} Kg7 {[%emt 0:00:00]} 40. Rxh7+ 1-0

[Event "FIDE World Cadets GU12 2022"]
[Site "Batumi"]
[Date "2022.09.27"]
[Round "11.18"]
[White "Enkhuyanga Gantsolmon"]
[Black "Kozusnikova, Daniela"]
[Result "1-0"]
[ECO "A14"]
[WhiteElo "1301"]
[BlackElo "1597"]
[Annotator "NA RC COMBH"]
[PlyCount "99"]
[EventDate "2022.09.16"]
[EventType "swiss"]
[EventCountry "GEO"]
[SourceTitle "playchess.com"]
[Source "ChessBase"]
[SourceQuality "1"]
[TimeControl "5400+30"]

1. Nf3 {[%emt 0:01:00]} d5 {[%emt 0:01:00]} 2. c4 {[%emt 0:00:00]} e6 {[%emt 0:10:30]} 3. g3 {[%emt 0:01:00]} c5 {[%emt 0:00:30]} 4. Bg2 {[%emt 0:00:30]} Nf6 {[%emt 0:01:30]} 5. O-O {[%emt 0:00:30]} Be7 {[%emt 0:00:30]} 6. e3 {[%emt 0:01:30]} O-O {[%emt 0:01:30]} 7. b3 {[%emt 0:00:30]} b6 {[%emt 0:01:30]} 8. Bb2 {[%emt 0:01:30]} Bb7 {[%emt 0:01:30]} 9. Ne5 {[%emt 0:02:30]} Nc6 {[%emt 0:05:30]} 10. Nxc6 {[%emt 0:01:30]} Bxc6 {[%emt 0:00:30]} 11. d4 {[%emt 0:00:30]} Qc7 {[%emt 0:03:30]} 12. dxc5 {[%emt 0:03:30]} Bxc5 {[%emt 0:04:30]} 13. Bxf6 {[%emt 0:02:30]} gxf6 {[%emt 0:00:30]} 14. cxd5 {[%emt 0:01:30]} Qe5 {[%emt 0:08:30]} 15. Nd2 {[%emt 0:08:30]} Bxd5 {[%emt 0:05:30]} 16. Bxd5 {[%emt 0:01:30]} Qxd5 {[%emt 0:00:30]} 17. Qg4+ {[%emt 0:01:30]} Kh8 {[%emt 0:03:30]} 18. Rfd1 {[%emt 0:01:30]} Rg8 {[%emt 0:05:30]} 19. Qf4 {[%emt 0:05:30]} Qg5 {[%emt 0:04:30]} 20. Qf3 {[%emt 0:03:30]} f5 {[%emt 0:04:30]} 21. Nc4 {[%emt 0:02:30]} Rad8 {[%emt 0:04:30]} 22. Ne5 {[%emt 0:05:30]} Qe7 {[%emt 0:07:30]} 23. Qh5 {[%emt 0:17:30]} Rxd1+ {[%emt 0:02:30]} 24. Rxd1 {[%emt 0:01:30]} Rg7 {[%emt 0:02:30]} 25. Rd7 {[%emt 0:01:30]} Qf6 {[%emt 0:02:34]} 26. Nxf7+ {[%emt 0:01:30]} Kg8 {[%emt 0:00:42]} 27. Rd8+ {[%emt 0:01:30]} Bf8 {[%emt 0:01:51]} 28. Nh6+ {[%emt 0:00:30]} Kh8 {[%emt 0:00:00]} 29. Qe8 {[%emt 0:02:30]} Re7 {[%emt 0:03:14]} 30. Qxf8+ {[%emt 0:00:30]} Qxf8 {[%emt 0:00:30]} 31. Rxf8+ {[%emt 0:00:30]} Kg7 {[%emt 0:00:30]} 32. Nxf5+ {[%emt 0:00:00]} Kxf8 {[%emt 0:00:00]} 33. Nxe7 {[%emt 0:00:00]} Kxe7 {[%emt 0:00:00]} 34. f4 {[%emt 0:00:30]} Kf6 {[%emt 0:00:24]} 35. Kf2 {[%emt 0:00:00]} b5 {[%emt 0:00:47]} 36. Kf3 {[%emt 0:00:00]} a5 {[%emt 0:01:17]} 37. g4 {[%emt 0:00:30]} b4 {[%emt 0:00:00]} 38. h4 {[%emt 0:00:00]} Kg6 {[%emt 0:00:29]} 39. e4 {[%emt 0:01:00]} Kf6 {[%emt 0:00:19]} 40. g5+ {[%emt 0:00:00]} Kg6 {[%emt 0:00:46]} 41. Kg4 {[%emt 0:00:00]} Kg7 {[%emt 0:00:30]} 42. f5 {[%emt 0:00:00]} Kf7 {[%emt 0:00:00]} 43. h5 {[%emt 0:00:00]} exf5+ {[%emt 0:00:28]} 44. exf5 {[%emt 0:00:30]} Kg7 {[%emt 0:00:56]} 45. f6+ {[%emt 0:00:30]} Kf7 {[%emt 0:00:30]} 46. Kf5 {[%emt 0:00:00]} Kg8 {[%emt 0:00:01]} 47. g6 {[%emt 0:00:00]} h6 {[%emt 0:01:23]} 48. f7+ {[%emt 0:00:00]} Kf8 {[%emt 0:00:33]} 49. Kf6 {[%emt 0:00:00]} a4 {[%emt 0:00:30]} 50. g7# {[%emt 0:00:30]} 1-0

[Event "FIDE World Cadets GU12 2022"]
[Site "Batumi"]
[Date "2022.09.27"]
[Round "11.19"]
[White "Misheel, Bold"]
[Black "Semenova, Vasilisa"]
[Result "0-1"]
[ECO "B13"]
[WhiteElo "1593"]
[BlackElo "1332"]
[Annotator "NA RC COMBH"]
[PlyCount "114"]
[EventDate "2022.09.16"]
[EventType "swiss"]
[EventCountry "GEO"]
[SourceTitle "playchess.com"]
[Source "ChessBase"]
[SourceQuality "1"]
[TimeControl "5400+30"]

1. e4 {[%emt 0:01:00]} c6 {[%emt 0:01:00]} 2. d4 {[%emt 0:00:00]} d5 {[%emt 0:00:30]} 3. exd5 {[%emt 0:00:00]} cxd5 {[%emt 0:00:30]} 4. c3 {[%emt 0:00:30]} Nc6 {[%emt 0:00:30]} 5. Be3 {[%emt 0:00:30]} Nf6 {[%emt 0:00:00]} 6. Bd3 {[%emt 0:00:30]} g6 {[%emt 0:00:00]} 7. Nd2 {[%emt 0:00:30]} Bf5 {[%emt 0:00:00]} 8. Bxf5 {[%emt 0:00:30]} gxf5 {[%emt 0:00:00]} 9. Ngf3 {[%emt 0:00:30]} e6 {[%emt 0:00:00]} 10. Qc2 {[%emt 0:03:30]} Bd6 {[%emt 0:00:00]} 11. Nb3 {[%emt 0:01:30]} Rg8 {[%emt 0:00:30]} 12. Rg1 {[%emt 0:02:30]} Ne4 {[%emt 0:01:30]} 13. g3 {[%emt 0:01:30]} Qc7 {[%emt 0:05:30]} 14. O-O-O {[%emt 0:02:30]} O-O-O {[%emt 0:00:30]} 15. Rdf1 {[%emt 0:05:30]} b6 {[%emt 0:01:30]} 16. Nfd2 {[%emt 0:04:30]} Nxd2 {[%emt 0:00:00]} 17. Qxd2 {[%emt 0:00:30]} a5 {[%emt 0:00:00]} 18. f4 {[%emt 0:03:30]} a4 {[%emt 0:00:30]} 19. Na1 {[%emt 0:00:00]} Kd7 {[%emt 0:02:30]} 20. Nc2 {[%emt 0:01:00]} Rb8 {[%emt 0:00:30]} 21. Qg2 {[%emt 0:03:30]} b5 {[%emt 0:02:30]} 22. Bd2 {[%emt 0:07:30]} b4 {[%emt 0:00:30]} 23. Qf3 {[%emt 0:04:30]} b3 {[%emt 0:00:30]} 24. axb3 {[%emt 0:00:30]} axb3 {[%emt 0:00:00]} 25. Ne3 {[%emt 0:00:30]} Qa5 {[%emt 0:00:00]} 26. Kd1 {[%emt 0:00:30]} Ra8 {[%emt 0:08:30]} 27. Ke2 {[%emt 0:00:30]} Qa2 {[%emt 0:01:30]} 28. Rb1 {[%emt 0:00:30]} Qa6+ {[%emt 0:04:30]} 29. Kf2 {[%emt 0:00:30]} Na5 {[%emt 0:03:30]} 30. Ra1 {[%emt 0:05:30]} Qb5 {[%emt 0:01:30]} 31. Rgd1 {[%emt 0:02:30]} Nc4 {[%emt 0:00:30]} 32. Nxc4 {[%emt 0:00:30]} Qxc4 {[%emt 0:00:00]} 33. Qe2 {[%emt 0:01:30]} Qxe2+ {[%emt 0:00:00]} 34. Kxe2 {[%emt 0:00:00]} Kc6 {[%emt 0:00:30]} 35. Kd3 {[%emt 0:00:00]} Kb5 {[%emt 0:00:30]} 36. Rdc1 {[%emt 0:01:30]} Rgc8 {[%emt 0:04:30]} 37. Rxa8 {[%emt 0:03:30]} Rxa8 {[%emt 0:00:30]} 38. c4+ {[%emt 0:00:30]} dxc4+ {[%emt 0:00:30]} 39. Rxc4 {[%emt 0:00:00]} Ra2 {[%emt 0:02:30]} 40. Bc1 {[%emt 0:02:00]} Ra8 {[%emt 0:08:30]} 41. Kc3 {[%emt 0:00:30]} h5 {[%emt 0:01:30]} 42. Kxb3 {[%emt 0:00:30]} h4 {[%emt 0:01:30]} 43. Rc3 {[%emt 0:01:30]} h3 {[%emt 0:00:30]} 44. Kc2 {[%emt 0:01:30]} Rg8 {[%emt 0:05:30]} 45. Be3 {[%emt 0:01:30]} Rxg3 {[%emt 0:01:30]} 46. Rb3+ {[%emt 0:01:30]} Kc6 {[%emt 0:00:30]} 47. Bd2 {[%emt 0:00:30]} Rg2 {[%emt 0:00:30]} 48. Rxh3 {[%emt 0:01:30]} Bxf4 {[%emt 0:00:00]} 49. Rd3 {[%emt 0:00:30]} Rxh2 {[%emt 0:00:00]} 50. Kc3 {[%emt 0:01:30]} Bxd2+ {[%emt 0:00:30]} 51. Rxd2 {[%emt 0:00:30]} Rxd2 {[%emt 0:00:30]} 52. Kxd2 {[%emt 0:00:00]} f6 {[%emt 0:00:00]} 53. Kd3 {[%emt 0:00:00]} e5 {[%emt 0:00:00]} 54. Kc4 {[%emt 0:01:30]} f4 {[%emt 0:00:30]} 55. d5+ {[%emt 0:00:30]} Kd6 {[%emt 0:00:30]} 56. b4 {[%emt 0:00:30]} f3 {[%emt 0:00:30]} 57. Kd3 {[%emt 0:00:30]} Kxd5 {[%emt 0:00:00]} 0-1

[Event "FIDE World Cadets GU12 2022"]
[Site "Batumi"]
[Date "2022.09.27"]
[Round "11.20"]
[White "Gan, Emily Cathay"]
[Black "Belaya, Liliya"]
[Result "0-1"]
[ECO "A28"]
[WhiteElo "1550"]
[BlackElo "1266"]
[Annotator "NA RC COMBH"]
[PlyCount "72"]
[EventDate "2022.09.16"]
[EventType "swiss"]
[EventCountry "GEO"]
[SourceTitle "playchess.com"]
[Source "ChessBase"]
[SourceQuality "1"]
[TimeControl "5400+30"]

1. c4 {[%emt 0:01:00]} e5 {[%emt 0:01:00]} 2. Nc3 {[%emt 0:00:00]} Nf6 {[%emt 0:00:30]} 3. d3 {[%emt 0:00:00]} Bb4 {[%emt 0:00:30]} 4. Bd2 {[%emt 0:00:30]} O-O {[%emt 0:00:00]} 5. Nf3 {[%emt 0:00:30]} Nc6 {[%emt 0:00:00]} 6. g3 {[%emt 0:00:30]} Nd4 {[%emt 0:00:30]} 7. Bg2 {[%emt 0:01:30]} Re8 {[%emt 0:00:30]} 8. O-O {[%emt 0:00:30]} d6 {[%emt 0:04:30]} 9. a3 {[%emt 0:03:30]} Ba5 {[%emt 0:00:30]} 10. b4 {[%emt 0:08:30]} Bb6 {[%emt 0:00:30]} 11. e3 {[%emt 0:01:30]} Nxf3+ {[%emt 0:03:30]} 12. Bxf3 {[%emt 0:00:30]} Bh3 {[%emt 0:01:30]} 13. Bg2 {[%emt 0:00:30]} Bxg2 {[%emt 0:00:30]} 14. Kxg2 {[%emt 0:00:00]} c6 {[%emt 0:00:00]} 15. Ne2 {[%emt 0:05:00]} d5 {[%emt 0:01:00]} 16. c5 {[%emt 0:01:30]} Bc7 {[%emt 0:00:00]} 17. d4 {[%emt 0:01:30]} e4 {[%emt 0:02:00]} 18. Nc3 {[%emt 0:00:30]} a6 {[%emt 0:04:30]} 19. a4 {[%emt 0:02:30]} Qd7 {[%emt 0:03:30]} 20. Qe2 {[%emt 0:00:30]} h6 {[%emt 0:00:30]} 21. b5 {[%emt 0:01:30]} Nh7 {[%emt 0:01:30]} 22. h4 {[%emt 0:05:30]} Re6 {[%emt 0:04:30]} 23. bxa6 {[%emt 0:03:30]} bxa6 {[%emt 0:00:30]} 24. f4 {[%emt 0:00:30]} exf3+ {[%emt 0:03:30]} 25. Rxf3 {[%emt 0:02:30]} Rb8 {[%emt 0:01:30]} 26. Qxa6 {[%emt 0:10:30]} Rb2 {[%emt 0:00:30]} 27. Ra2 {[%emt 0:01:30]} Rxa2 {[%emt 0:01:30]} 28. Nxa2 {[%emt 0:00:00]} Nf6 {[%emt 0:00:00]} 29. Nc3 {[%emt 0:15:00]} Nh5 {[%emt 0:01:00]} 30. Be1 {[%emt 0:02:30]} Rg6 {[%emt 0:00:30]} 31. Qe2 {[%emt 0:03:30]} Qg4 {[%emt 0:02:30]} 32. Rf1 {[%emt 0:13:36]} Qxh4 {[%emt 0:04:30]} 33. Qf3 {[%emt 0:02:25]} Nxg3 {[%emt 0:01:30]} 34. Qxf7+ {[%emt 0:01:49]} Kh7 {[%emt 0:00:00]} 35. Qxc7 {[%emt 0:00:35]} Ne4+ {[%emt 0:01:00]} 36. Bg3 {[%emt 0:02:16]} Rxg3+ {[%emt 0:00:30]} 0-1